{"text_format":"1","workbook":"xlsx","n_sheets":3,"sheets":["Relación de gastos","Relación de ingresos ","gastos e ingresos"],"not_rendered":{"charts":0,"images":2,"macros":1,"external_links":0,"defined_names":8,"comments":3,"pivot_tables":0},"unopened":[],"bounds":{"document_bytes":16777216,"sheet_cells":100000,"rows_first":2000,"rows_last":500,"rows_between":2000,"halvings":0,"cell_chars":16384,"cell_head_chars":4096},"cells_cut":0,"cells_raw":0,"read":"whole","date_system":"1900"}

{"sheet":"Relación de gastos","index":0,"n_rows":77,"n_cols":10,"rows_kept":77,"cut":false,"hidden":false,"merged":[[42,3,42,6],[42,9,42,10],[43,0,43,5],[43,9,43,10],[72,0,72,12],[46,0,46,10],[56,0,56,10],[58,0,58,10],[59,0,59,10],[60,0,60,10],[4,7,4,8],[64,0,64,11],[65,0,65,11],[66,0,66,12],[67,0,67,12],[52,1,52,2],[36,9,36,10],[35,0,35,10],[62,0,62,12],[63,0,63,12],[41,9,41,10],[41,0,41,6],[40,9,40,10],[38,9,38,10],[37,9,37,10],[42,0,42,2],[3,0,3,1],[9,1,10,1],[9,0,10,0],[6,0,6,4],[0,0,0,10],[4,0,4,1],[2,2,2,3],[3,2,3,3],[4,2,4,3],[2,0,2,1],[2,4,2,6],[3,4,3,6],[4,4,4,6],[9,2,10,2],[2,7,2,8],[3,7,3,8],[20,0,20,10],[21,9,21,10],[9,3,9,4],[29,9,29,10],[30,9,30,10],[10,9,10,10],[15,9,15,10],[9,9,9,10],[12,0,12,10],[18,9,18,10],[19,9,19,10],[11,0,11,8],[19,0,19,6],[13,9,13,10],[14,9,14,10],[33,9,33,10],[34,0,34,6],[34,9,34,10],[22,9,22,10],[23,9,23,10],[25,9,25,10],[26,0,26,6],[26,9,26,10],[27,0,27,10],[28,9,28,10],[76,0,76,12],[68,0,69,12],[47,0,48,10],[70,0,70,12],[71,0,71,12],[61,0,61,10],[73,0,73,12],[74,0,74,12],[75,0,75,12]]}
["Relación clasificada de todos los gastos realizados para la ejecución de la actividad subvencionada"]
[]
["Persona física/jurídica beneficiaria:         ",null,null,null,"Importe total del proyecto:",null,null,null,null,"euros"]
["Código de subvención:",null,null,null,"Importe de la subvención otorgada:",null,null,null,null,"euros"]
["Nombre del proyecto subvencionado:",null,null,null,"Período de ejecución del proyecto subvencionado:",null,null,null,null,"a"]
[]
["Gastos del proyecto/actividad/servicio subvencionado (*)"]
[]
[]
["Núm. de orden (0)","Número de documento: justificantes gasto personal(1), factura o recibo/tiquet(2)","Concepto de la factura / \ndocumento probatorio equivalente","Emisor/a de la factura",null,"Fecha de emisión","Importe total de la factura","Importe imputable (dedicado) al proyecto (3)","Importe imputable a la subvención municipal (4)","Observaciones"]
[null,null,null,"NIF","Nombre","dd/mm/aaaa","euros","euros","euros"]
["GASTOS DIRECTOS (Aquellos que se identifican directamente con el proyecto)"]
["D.1  Nóminas y seguridad social IRPF (régimen general o régimen de autónomos) del personal propio  vinculado al proyecto "]
[]
[]
[]
[]
[]
[]
["Subtotal D.1",null,null,null,null,null,null,{"$f":"SUM(H14:H19)","v":0},{"$f":"SUM(I14:I19)","v":0}]
["D.2 Rendimientos anuales netos del empresario/a individual (ver 13.2 bases)"]
[]
[]
[]
[]
[]
["Subtotal D.2",null,null,null,null,null,null,{"$f":"SUM(H22:H26)","v":0},{"$f":"SUM(I22:I26)","v":0}]
["D.3  Trabajos realizados por profesionales y empresas externas directamente vinculadas al proyecto"]
[]
[]
[]
[]
[]
[]
["Subtotal D.3",null,null,null,null,null,null,{"$f":"SUM(H29:H34)","v":0},{"$f":"SUM(I29:I34)","v":0}]
["D.4 Gastos de licencias y tasas relacionadas con el inicio de la actividad"]
[]
[]
[]
[]
[]
["Subtotal D.4",null,null,null,null,null,null,{"$f":"SUM(H37:H41)","v":0},{"$f":"SUM(I37:I41)","v":0}]
["TOTAL GASTOS DIRECTOS ",null,null,"TOTAL GASTOS DIRECTOS",null,null,null,{"$f":"+H20+H42+H27+H35","v":0},{"$f":"+I20+I42+I27+I35","v":0}]
["TOTAL GASTOS",null,null,null,null,null,"TOTAL",{"$f":"+H43","v":0},{"$f":"+I43","v":0}]
[]
[]
["El Sr./Sra. (indicar el nombre y apellidos de la persona representante que firma la justificación) con DNI/NIE (indicar el núm. DNI) en calidad de persona física beneficiaria o representante legal de la persona jurídica beneficiaria (indicar nombre y apellidos) con NIF (indicar núm DNI)."]
["CERTIFICA que los gastos imputados al proyecto/actividad/servicio subvencionado han sido efectivamente efectuados; que custodiará la documentación soporte que lo acredite; que esta documentación se encuentra a disposición del Ayuntamiento de Barcelona o de los otros entes municipales en los archivos de esta Entidad, durante un período mínimo de 4 años a contar desde la fecha de presentación de la presente justificación."]
[]
[]
[]
[]
[null,"Población y fecha: ",null,null,"Firma y sello (en caso de registro físico)"]
[]
[]
["Notas:"]
["(*) Deben relacionarse todos los gastos del proyecto/actividad/servicio subvencionado. En el caso de que el número de filas de cada concepto sea insuficiente podéis insertar líneas dentro del mismo concepto seleccionando una celda verde y haciendo clic sobre el botón de insertar línea."]
["(0) El número de orden debe ser correlativo empezando por D.1.1, D.1.2, D.1.3, D.2.4, etc."]
["(1) Respecto a los gastos de recursos humanos, puede ser subvencionable el coste total salarial mensual, que corresponde a la suma de la retribución bruta que aparece en la nómina del trabajador/a más la cuota de la empresa a la Seg. Social. Los gastos de personal se justifican con la nómina del trabajador/a acompañada de los correspondientes TC1 y TC2 de la TGSS y el modelo 111 del IRPF."]
["(2) En el caso de que el documento justificativo del resto de gastos, no sea una factura, sino otro documento probatorio equivalente, como un recibo o justificante (como para dietas o transporte público), hay que indicarlo en la columna \"observaciones\""]
["(3) En el caso de que un justificante incluya conceptos que no tienen que ver con el proyecto/actividad/servicio por el qué se ha otorgado la subvención, aquí sólo se debe indicar la parte que realmente se ha dedicado al proyecto."]
["(4) En esta columna se debe indicar el importe total o parcial de la factura que se imputa a la subvención recibda del Ayuntamiento de Barcelona. El total imputado, en esta columna, debe ser igual al importe de la subvención recibida."]
["Modalidad Aa: Creación y transformación: Creación de nuevas cooperativas y transformación, de otras formas jurídicas pre-existentes, en cooperativas"]
["Se establece como obligación de la subvención la constitución de la cooperativa, registrada en el registro correspondiente y el alta censal, antes de la finalización del proyecto subvencionado"]
["1.  La cuantía de la subvención otorgada no superará el 80% del gasto total del proyecto a subvencionar. "]
["2.  Se establecerá como obligación de la subvención la constitución de la cooperativa o sociedad laboral, registrada en el registro correspondiente y el alta censal, antes de la finalización del proyecto subvencionado. A los efectos de la justificación económica serán admisibles los gastos facturados a nombre de los solicitantes y los gastos facturados a nombre de la entidad de economía social una vez constituida (punto 6.3 de las bases)."]
["3.  Se limita con un máximo del 20% el importe de la subvención para gastos de personal propio que participa de forma directa y debidamente en el proyecto."]
["4.  Sólo con carácter excepcional, los/as empresarios/as individuales que no tengan personas trabajadoras en plantilla podrán acreditar sus trabajos mediante una declaración responsable acompañada de las declaraciones IRPF (modelo 130) del ejercicio corriente. El precio/hora imputado al proyecto subvencionado no podrá superar la cantidad resultante de dividir los rendimientos anuales netos del empresario/a individual por 1800."]
["5. Los salarios percibidos por las personas contratadas en el marco del proyecto subvencionado no sean inferiores a 1.088,56€ brutos mensuales (13.062,72€ brutos en cómputo anual) en el caso de jornadas completas, o la parte proporcional en el caso de jornadas parciales (punto 7 de las bases 2019: Requisitos de los proyectos)."]
[]
["6. En ningún caso se considerarán gastos subvencionables:"]
["* Los impuestos indirectos cuando sean susceptibles de recuperación o compensación, ni los impuestos sobre la renta."]
["* Los gastos de inversión, incluidas las adquisiciones de bienes muebles."]
["* Los gastos realizados con fecha anterior al inicio del proyecto y fecha posterior a la finalización del proyecto."]
["* Otros gastos que se indiquen en la convocatoria."]
["7. No son imputables en esta modalidad los gastos indirectos, detallados en el apartado 13.3. de las bases reguladoras."]
["8. La no realización de la actividad subvencionada o el incumplimiento de las condiciones que fueron consideradas para el otorgamiento de la subvención, así como la falta de justificación o la justificación incompleta o incorrecta de la actividad subvencionada, puede comportar el reintegro total o parcial de la subvención por parte del beneficiario (punto 19 de las bases reguladoras)."]

{"sheet":"Relación de ingresos ","index":1,"n_rows":79,"n_cols":10,"rows_kept":79,"cut":false,"hidden":false,"merged":[[74,1,74,3],[65,6,65,9],[60,6,60,9],[67,6,67,9],[61,6,61,9],[62,6,62,9],[63,6,63,9],[64,6,64,9],[67,0,67,3],[66,0,66,3],[70,0,70,9],[71,0,72,9],[66,6,66,9],[59,6,59,9],[57,0,57,3],[51,0,51,3],[54,6,54,9],[53,6,53,9],[57,6,57,9],[51,6,51,9],[50,6,50,9],[0,0,0,9],[9,0,9,9],[16,0,16,9],[7,6,8,9],[10,6,10,9],[7,0,8,0],[11,6,11,9],[14,6,14,9],[3,2,3,3],[2,2,2,3],[6,0,6,3],[4,2,4,3],[7,2,7,3],[7,1,8,1],[15,0,15,3],[45,0,45,3],[39,0,39,3],[33,0,33,3],[15,6,15,9],[21,6,21,9],[29,6,29,9],[39,6,39,9],[38,6,38,9],[33,6,33,9],[32,6,32,9],[27,0,27,3],[21,0,21,3],[37,6,37,9],[35,6,35,9],[25,6,25,9],[30,6,30,9],[49,6,49,9],[45,6,45,9],[44,6,44,9],[43,6,43,9],[31,6,31,9],[27,6,27,9],[26,6,26,9],[42,6,42,9],[41,6,41,9],[48,6,48,9],[47,6,47,9],[24,6,24,9],[20,6,20,9],[19,6,19,9],[18,6,18,9],[17,6,17,9],[23,6,23,9]]}
["Detalle de todos los ingresos obtenidos y aportaciones del propio beneficiario para la ejecución de la actividad subvencionada"]
[]
[null,"Nombre de la persona física/jurídica beneficiaria:        ",{"$f":"IF('Relación de gastos'!C3:D3<>\"\",'Relación de gastos'!C3:D3,\"\")","v":""},null,"Importe total del proyecto:",null,null,{"$f":"IF(+'Relación de gastos'!H3=\"\",\"\",+'Relación de gastos'!H3)","v":""},"euros"]
[null,"Código de subvención:",{"$f":"IF('Relación de gastos'!C4:D4<>\"\",'Relación de gastos'!C4:D4,\"\")","v":""},null,"Importe de la subvención otorgada:",null,null,{"$f":"IF(+'Relación de gastos'!H4=\"\",\"\",+'Relación de gastos'!H4)","v":""},"euros"]
[null,"Nombre del proyecto subvencionado:",{"$f":"IF('Relación de gastos'!C5:D5<>\"\",'Relación de gastos'!C5:D5,\"\")","v":""},null,"Período de ejecución del proyecto subvencionado:",null,null,{"$f":"IF(+'Relación de gastos'!H5=\"\",\"\",+'Relación de gastos'!H5)","v":""},"a",{"$f":"IF(+'Relación de gastos'!K5=\"\",\"\",+'Relación de gastos'!K5)","v":""}]
[]
["Ingresos del proyecto/actividad/servicio subvencionado"]
["núm. de orden (0)","Concepto del ingreso","Emisor/a del ingreso",null,"Fecha de cobro\n(dd/mm/aaaa)","Importe","Observaciones"]
[null,null,"NIF","Nombre","(1)","euros"]
["A. Subvención municipal "]
[]
[]
[]
[]
[]
[null,null,null,null,"Subtotal A",{"$f":"SUM(F11:F15)","v":0}]
["B. Subvenciones de otras administraciones"]
[]
[]
[]
[]
[null,null,null,null,"Subtotal B",{"$f":"SUM(F18:F21)","v":0}]
["C. Subvenciones de entes privados"]
[]
[]
[]
[]
[null,null,null,null,"Subtotal C",{"$f":"SUM(F24:F27)","v":0}]
["D. Recursos propios de la entidad aplicados al proyecto"]
[]
[]
[]
[]
[null,null,null,null,"Subtotal D",{"$f":"SUM(F30:F33)","v":0}]
["E. Taquillaje"]
[]
[]
[]
[]
[null,null,null,null,"Subtotal E",{"$f":"SUM(F36:F39)","v":0}]
["F. Cuotas de inscripción"]
[]
[]
[]
[]
[null,null,null,null,"Subtotal F",{"$f":"SUM(F42:F45)","v":0}]
["G. Venta de Productos"]
[]
[]
[]
[]
[null,null,null,null,"Subtotal G",{"$f":"SUM(F48:F51)","v":0}]
["H. Publicidad y/o Esponsorización"]
[]
[]
[]
[]
[null,null,null,null,"Subtotal H",{"$f":"SUM(F54:F57)","v":0}]
["I. Otros ingresos"]
[]
[]
[]
[]
[]
[]
[]
[null,null,null,null,"Subtotal I",{"$f":"SUM(F60:F66)","v":0}]
["Total INGRESOS",null,null,null,"TOTAL",{"$f":"+F16+F22+F28+F34+F40+F46+F52+F58+F67","v":0}]
[]
[]
[{"$f":"'Relación de gastos'!A47:K47","v":"El Sr./Sra. (indicar el nombre y apellidos de la persona representante que firma la justificación) con DNI/NIE (indicar el núm. DNI) en calidad de persona física beneficiaria o representante legal de la persona jurídica beneficiaria (indicar nombre y apellidos) con NIF (indicar núm DNI)."}]
["CERTIFICA que los ingresos imputados al proyecto/actividad/servicio subvencionado han sido efectivamente ingresados; que custodiará la documentación soporte que lo acredita; que esta documentación se encuentra a disposición del Ayuntamiento de Barcelona o de los otros entes municipales en los archivos de esta Entidad, durante un período mínimo de 4 años a contar desde la fecha de presentación de la presente justificación."]
[]
[]
[null,"Población y fecha: ",null,null,null,"Firma y sello (en caso de registro físico)"]
[]
[null,"Nota:"]
[null,"(0) El número de orden debe ser correlativo comenzando por el número A1, A2, A3, B4, etc."]
[null,"(1) En caso de que el ingreso esté pendiente de cobro, indicar \"P. Cobro\" "]

{"sheet":"gastos e ingresos","index":2,"n_rows":71,"n_cols":11,"rows_kept":71,"cut":false,"hidden":false,"merged":[[33,1,33,2],[4,5,4,6],[5,0,5,1],[5,2,5,3],[5,5,5,6],[9,6,9,7],[6,0,6,1],[6,2,6,3],[9,0,9,1],[4,0,4,1],[4,2,4,3],[26,7,26,10],[10,8,11,8],[10,9,11,9],[10,2,11,2],[10,3,11,3],[10,6,11,7],[22,1,22,2],[10,0,11,1],[22,3,22,4],[30,0,31,9],[21,1,21,2],[29,0,29,9],[41,0,41,10],[42,0,42,10],[36,0,36,10],[37,0,37,10],[38,0,38,10],[39,0,39,10],[40,0,40,10]]}
[]
[]
["Estado de los gastos realizados y de los ingresos obtenidos para la ejecución de la actividad subvencionada (*)"]
[]
["Nombre de la persona física/jurídica beneficiaria:         ",null,{"$f":"IF('Relación de gastos'!C3:D3<>\"\",'Relación de gastos'!C3:D3,\"\")","v":""},null,null,"Importe total del proyecto:",null,{"$f":"'Relación de ingresos '!H3","v":""},"euros"]
["Código de subvención:",null,{"$f":"IF('Relación de gastos'!C4:D4<>\"\",'Relación de gastos'!C4:D4,\"\")","v":""},null,null,"Importe de la subvención otorgada:",null,{"$f":"'Relación de ingresos '!H4","v":""},"euros"]
["Nombre del proyecto subvencionado:",null,{"$f":"IF('Relación de gastos'!C5:D5<>\"\",'Relación de gastos'!C5:D5,\"\")","v":""},null,null,"Período de ejecución del proyecto subvencionado:",null,null,{"$f":"'Relación de ingresos '!H5","v":""},"a",{"$f":"'Relación de ingresos '!J5","v":""}]
[]
["SUBVENCIONES PARA LA PROMOCIÓN Y REFUERZO DE LA ECONOMÍA SOCIAL Y SOLIDARIA 2020"]
["GASTOS PREVISTOS",null,"importe en euros",null,null,null,"INGRESOS PREVISTOS",null,"importe en euros"]
["Gastos directos \n(aquellos que se identifican directamente con el proyecto)",null,"Previsión inicial o reformulada ya aprovada (1)","Gastos realizados (2)","Diferencia\n",null,"Ingresos previstos",null,"Previsión inicial (1)","Ingresos obtenidos (3)"]
[null,null,null,null,"(2-1)"]
["Aa","D.1  Nóminas y seguridad social IRPF (régimen general o régimen de autónomos) del personal propio vinculado al proyecto ",null,{"$f":"'Relación de gastos'!H20","v":0},{"$f":"+C13-D13","v":0},null,"A.","Subvención municipal (importe solicitado en la instancia/otorgado)",null,{"$f":"'Relación de ingresos '!F16","v":0}]
[null,"D.2 Rendimientos anuales netos del empresario/a individual (ver 13.2 bases)",null,{"$f":"'Relación de gastos'!H27","v":0},{"$f":"+C14-D14","v":0},null,"B.","Subvenciones de otras administraciones",null,{"$f":"'Relación de ingresos '!F22","v":0}]
[null,"D.3  Trabajos realizados por profesionales y empresas externas directamente vinculadas al proyecto",null,{"$f":"'Relación de gastos'!H35","v":0},{"$f":"+C15-D15","v":0},null,"C.","Subvenciones de entes privados",null,{"$f":"'Relación de ingresos '!F28","v":0}]
[null,"D.4 Gastos de licencias y tasas relacionadas con el inicio de la actividad",null,{"$f":"'Relación de gastos'!H42","v":0},{"$f":"+C16-D16","v":0},null,"D.","Recursos propios de la entidad aplicados al proyecto",null,{"$f":"'Relación de ingresos '!F34","v":0}]
[null,"Total Gastos Directos   ",{"$f":"SUM(C13:C16)","v":0},{"$f":"SUM(D13:D16)","v":0},{"$f":"SUM(E13:E16)","v":0},null,"E.","Taquillaje",null,{"$f":"'Relación de ingresos '!F40","v":0}]
[null,"Total Gastos ",{"$f":"+C17","v":0},{"$f":"+D17","v":0},{"$f":"C18-D18","v":0},null,"F.","Cuotas de inscripción",null,{"$f":"'Relación de ingresos '!F46","v":0}]
[null,null,null,null,"importe en euros",null,"G.","Venta de Productos",null,{"$f":"'Relación de ingresos '!F52","v":0}]
[null,null,null,null,null,null,"H","Publicidad y/o Esponsorización",null,{"$f":"'Relación de ingresos '!F58","v":0}]
[null,null,null,null,null,null,"I.","Otros ingresos",null,{"$f":"'Relación de ingresos '!F67","v":0}]
[null,"Ingresos menos gastos ",null,{"$f":"+I22-C18","v":0},{"$f":"+J22-D18","v":0},null,null,"Total Ingresos",{"$f":"SUM(I13:I21)","v":0},{"$f":"SUM(J13:J21)","v":0}]
[null,"Desviación de Gastos (4)",null,"Desviación de ingresos (4)"]
[null,"Importe"," % ","Importe","%"]
[null,{"$f":"D18-C18","v":0},{"$f":"D18/C18","v":{"$error":"#DIV/0!"}},{"$f":"J22-I22","v":0},{"$f":"J22/I22","v":{"$error":"#DIV/0!"}}]
[null,null,null,"% subvencionado inicialmente o después de reformulación (5)",{"$f":"I13/I22","v":{"$error":"#DIV/0!"}}]
[null,null,null,"% subvencionado después de justificación (6)",{"$f":"+J13/J22","v":{"$error":"#DIV/0!"}}]
[]
[]
[{"$f":"'Relación de gastos'!A47:K47","v":"El Sr./Sra. (indicar el nombre y apellidos de la persona representante que firma la justificación) con DNI/NIE (indicar el núm. DNI) en calidad de persona física beneficiaria o representante legal de la persona jurídica beneficiaria (indicar nombre y apellidos) con NIF (indicar núm DNI)."}]
["CERTIFICA que los ingresos imputados al proyecto/actividad/servicio subvencionado han sido efectivamente ingresados; que custodiará la documentación soporte que lo acredita; que esta documentación se encuentra a disposición del Ayuntamiento de Barcelona o de los otros entes municipales en los archivos de esta Entidad, durante un período mínimo de 4 años a contar desde la fecha de presentación de la presente justificación."]
[]
[]
[null,"Población y fecha: ",null,null,"Firma y sello (en caso de registro físico)"]
[]
["Notas:"]
["(*) Las columnas sombreadas en color se irán rellenando automáticamente a partir de los datos introducidos en los documentos de gastos-detalle e ingresos-detalle. Por lo tanto, no imprima esta hoja hasta haber cumplimentado las otras."]
["(1) Previsión inicial o reformulación ya aprovada= Se deben indicar la previsión inicial de gastos y de ingresos según aquello que se indicó en el proyecto original en el \"plan de viabilidad económica del proyecto - presupuesto general\" . En caso de que ya se haya aprovado una reformulación, se deben indicar las cantidades reformuladas. "]
["(2) Gastos reales = Coste real total del proyecto subvencionado. Automáticamente se introducirán los subtotales de los gastos relacionados en la hoja Gastos-detalle."]
["(3) Ingresos reales = Total de ingresos obtenidos para la realización del proyecto subvencionado. Automáticamente se introducirán los subtotales de los ingresos relacionados en la hoja Ingresos-detalle"]
["(4) Desviación: En el caso de los gastos, la desviación es la diferencia entre gastos reales y la previsión inicial de gastos; y en el caso de ingresos, la diferencia entre los ingresos reales y la previsión inicial de ingresos. "]
["(5) % financiación municipal = porcentaje que suponen las subvenciones municipales (A) respecto del total de ingresos del proyecto subvencionado."]
["(6) El % de la desviación final de gastos se calcula dividiendo el importe resultante de gastos reales - gastos previstos, entre el total de gastos previstos y de la misma manera los ingresos. En caso de existir una desviación siempre se debe motivar."]
[]
[]
[]
[]
[]
[]
[]
[]
[]
[]
[]
[]
[]
[]
[]
[]
[]
[]
[]
[]
[]
[]
[]
[]
[]
[]
[]
[null,null,0]